[Event "Titled Tuesday Blitz June 6 Late 2023"]
[White "Prohaszka, Peter"]
[Black "Perske, Thore"]
[WhiteFideId "726265"]
[BlackFideId "12902195"]
[WhiteElo "2626"]
[BlackElo "2336"]
[Result "1-0"]
[Round "2"]
[TimeControl "180+2"]
[Date "2023.06.07"]
[WhiteClock "0:00:06"]
[BlackClock "0:00:04"]
[Board "52"]

1. d4 {[%clk 0:03:00]}  d5 {[%clk 0:02:59]} 2. Nf3 {[%clk 0:02:59]}  Nf6 {[%clk 0:02:59]} 3. c3 {[%clk 0:02:59]}  c5 {[%clk 0:02:59]} 4. dxc5 {[%clk 0:02:59]}  a5 {[%clk 0:02:56]} 5. e3 {[%clk 0:02:00]}  e6 {[%clk 0:02:38]} 6. b4 {[%clk 0:01:54]}  axb4 {[%clk 0:02:31]} 7. cxb4 {[%clk 0:01:55]}  b6 {[%clk 0:02:30]} 8. Bb5+ {[%clk 0:01:54]}  Bd7 {[%clk 0:02:22]} 9. Bxd7+ {[%clk 0:01:53]}  Qxd7 {[%clk 0:02:20]} 10. a4 {[%clk 0:01:45]}  bxc5 {[%clk 0:02:19]} 11. b5 {[%clk 0:01:46]}  Qc7 {[%clk 0:02:04]} 12. Bb2 {[%clk 0:01:42]}  Nbd7 {[%clk 0:02:02]} 13. O-O {[%clk 0:01:36]}  Bd6 {[%clk 0:02:02]} 14. Nbd2 {[%clk 0:01:20]}  O-O {[%clk 0:02:02]} 15. Qc2 {[%clk 0:01:17]}  Rfb8 {[%clk 0:01:46]} 16. Rfe1 {[%clk 0:00:56]}  h6 {[%clk 0:01:35]} 17. e4 {[%clk 0:00:55]}  Ng4 {[%clk 0:01:04]} 18. h3 {[%clk 0:00:32]}  Nge5 {[%clk 0:01:04]} 19. Nxe5 {[%clk 0:00:17]}  Nxe5 {[%clk 0:01:00]} 20. f4 {[%clk 0:00:17]}  Ng6 {[%clk 0:00:53]} 21. f5 {[%clk 0:00:17]}  Nh4 {[%clk 0:00:38]} 22. fxe6 {[%clk 0:00:13]}  fxe6 {[%clk 0:00:39]} 23. exd5 {[%clk 0:00:09]}  exd5 {[%clk 0:00:35]} 24. Qd3 {[%clk 0:00:07]}  Bh2+ {[%clk 0:00:27]} 25. Kh1 {[%clk 0:00:07]}  Rd8 {[%clk 0:00:28]} 26. Nf1 {[%clk 0:00:07]}  Bd6 {[%clk 0:00:15]} 27. Qxd5+ {[%clk 0:00:06]}  Kh8 {[%clk 0:00:16]} 28. Qh5 {[%clk 0:00:05]}  Bg3 {[%clk 0:00:11]} 29. Qxh6+ {[%clk 0:00:05]}  Kg8 {[%clk 0:00:12]} 30. Qe6+ {[%clk 0:00:04]}  Kh8 {[%clk 0:00:11]} 31. Nxg3 {[%clk 0:00:04]}  Qxg3 {[%clk 0:00:12]} 32. Qh6+ {[%clk 0:00:04]}  Kg8 {[%clk 0:00:12]} 33. Qe6+ {[%clk 0:00:04]}  Kh8 {[%clk 0:00:12]} 34. Re2 {[%clk 0:00:05]}  Re8 {[%clk 0:00:10]} 35. Qc4 {[%clk 0:00:03]}  Rxe2 {[%clk 0:00:08]} 36. Qxe2 {[%clk 0:00:04]}  Rf8 {[%clk 0:00:08]} 37. Rg1 {[%clk 0:00:04]}  Rf2 {[%clk 0:00:08]} 38. Qe8+ {[%clk 0:00:04]}  Kh7 {[%clk 0:00:08]} 39. Qh5+ {[%clk 0:00:04]}  Kg8 {[%clk 0:00:08]} 40. Qd5+ {[%clk 0:00:05]}  Kh7 {[%clk 0:00:08]} 41. Be5 {[%clk 0:00:05]}  Qg5 {[%clk 0:00:04]} 42. Qe4+ {[%clk 0:00:06]}  Kg8 {[%clk 0:00:03]} 43. b6 {[%clk 0:00:06]}  Nxg2 {[%clk 0:00:03]} 44. Rxg2 {[%clk 0:00:06]}  Qc1+ {[%clk 0:00:03]} 45. Kh2 {[%clk 0:00:06]}  Rxg2+ {[%clk 0:00:04]} 46. Qxg2 {[%clk 0:00:06]} 1-0


[Site "https://www.chess.com"]

[Event "Titled Tuesday Blitz June 6 Late 2023"]
[White "Simonian, Hrair"]
[Black "Eggink, Ryszard"]
[WhiteFideId "13302337"]
[BlackFideId "1125869"]
[WhiteElo "2447"]
[BlackElo "2283"]
[Result "1-0"]
[Round "2"]
[TimeControl "180+2"]
[Date "2023.06.07"]
[WhiteClock "0:01:04"]
[BlackClock "0:00:12"]
[Board "54"]

1. e4 {[%clk 0:02:52]}  c5 {[%clk 0:02:59]} 2. Nc3 {[%clk 0:02:51]}  Nc6 {[%clk 0:02:58]} 3. Bb5 {[%clk 0:02:51]}  Nd4 {[%clk 0:02:55]} 4. Bc4 {[%clk 0:02:51]}  g6 {[%clk 0:02:54]} 5. Nf3 {[%clk 0:02:50]}  Bg7 {[%clk 0:02:54]} 6. Nxd4 {[%clk 0:02:49]}  cxd4 {[%clk 0:02:49]} 7. Qf3 {[%clk 0:02:48]}  e6 {[%clk 0:01:28]} 8. Nb5 {[%clk 0:02:46]}  d6 {[%clk 0:01:26]} 9. Qa3 {[%clk 0:02:44]}  Ke7 {[%clk 0:01:19]} 10. c3 {[%clk 0:02:43]}  dxc3 {[%clk 0:01:09]} 11. dxc3 {[%clk 0:02:43]}  a6 {[%clk 0:01:07]} 12. Nd4 {[%clk 0:02:43]}  Nf6 {[%clk 0:01:02]} 13. e5 {[%clk 0:02:29]}  Ng4 {[%clk 0:01:02]} 14. Bg5+ {[%clk 0:02:28]}  f6 {[%clk 0:01:01]} 15. exf6+ {[%clk 0:02:24]}  Bxf6 {[%clk 0:01:01]} 16. Bxf6+ {[%clk 0:02:24]}  Nxf6 {[%clk 0:00:59]} 17. O-O-O {[%clk 0:02:23]}  Kf7 {[%clk 0:00:33]} 18. Rhe1 {[%clk 0:02:12]}  d5 {[%clk 0:00:33]} 19. Nf3 {[%clk 0:02:00]}  Re8 {[%clk 0:00:29]} 20. Bb5 {[%clk 0:01:47]}  Re7 {[%clk 0:00:19]} 21. c4 {[%clk 0:01:40]}  Qc7 {[%clk 0:00:17]} 22. Kb1 {[%clk 0:01:39]}  axb5 {[%clk 0:00:14]} 23. Qxa8 {[%clk 0:01:37]}  bxc4 {[%clk 0:00:14]} 24. Ne5+ {[%clk 0:01:36]}  Kg7 {[%clk 0:00:14]} 25. f3 {[%clk 0:01:33]}  b5 {[%clk 0:00:13]} 26. Qa3 {[%clk 0:01:27]}  Bb7 {[%clk 0:00:13]} 27. g4 {[%clk 0:01:24]}  Ne8 {[%clk 0:00:13]} 28. h4 {[%clk 0:01:21]}  Nd6 {[%clk 0:00:13]} 29. h5 {[%clk 0:01:19]}  Qb6 {[%clk 0:00:13]} 30. hxg6 {[%clk 0:01:17]}  hxg6 {[%clk 0:00:14]} 31. Qc3 {[%clk 0:01:16]}  b4 {[%clk 0:00:14]} 32. Qd2 {[%clk 0:01:15]}  c3 {[%clk 0:00:14]} 33. Qg5 {[%clk 0:01:14]}  Qf2 {[%clk 0:00:09]} 34. Qxe7+ {[%clk 0:01:12]}  Kg8 {[%clk 0:00:10]} 35. Qxe6+ {[%clk 0:01:09]}  Kg7 {[%clk 0:00:10]} 36. Qxg6+ {[%clk 0:01:07]}  Kf8 {[%clk 0:00:11]} 37. Qxd6+ {[%clk 0:01:06]}  Kg7 {[%clk 0:00:12]} 38. Qg6+ {[%clk 0:01:05]}  Kf8 {[%clk 0:00:12]} 39. Qf7# {[%clk 0:01:04]} 1-0


[Site "https://www.chess.com"]

[Event "Titled Tuesday Blitz June 6 Late 2023"]
[White "benny_aizenberg"]
[Black "Yeritsyan, Hayk"]
[BlackFideId "13307320"]
[WhiteElo "2723"]
[BlackElo "2477"]
[Result "1/2-1/2"]
[Round "2"]
[TimeControl "180+2"]
[Date "2023.06.07"]
[WhiteClock "0:00:09"]
[BlackClock "0:00:29"]
[Board "56"]

1. d4 {[%clk 0:02:58]}  d5 {[%clk 0:02:59]} 2. c4 {[%clk 0:02:55]}  e6 {[%clk 0:03:00]} 3. Nf3 {[%clk 0:02:53]}  Nf6 {[%clk 0:02:59]} 4. Bg5 {[%clk 0:02:50]}  c6 {[%clk 0:02:58]} 5. e3 {[%clk 0:02:45]}  Nbd7 {[%clk 0:02:58]} 6. Bd3 {[%clk 0:02:43]}  Qa5+ {[%clk 0:02:57]} 7. Nbd2 {[%clk 0:02:29]}  Ne4 {[%clk 0:02:54]} 8. Bf4 {[%clk 0:01:53]}  Nxd2 {[%clk 0:02:47]} 9. Nxd2 {[%clk 0:01:51]}  dxc4 {[%clk 0:02:38]} 10. Bxc4 {[%clk 0:01:50]}  Bb4 {[%clk 0:02:38]} 11. a3 {[%clk 0:01:50]}  Bxd2+ {[%clk 0:02:34]} 12. Qxd2 {[%clk 0:01:50]}  Qxd2+ {[%clk 0:02:33]} 13. Kxd2 {[%clk 0:01:51]}  c5 {[%clk 0:02:32]} 14. dxc5 {[%clk 0:01:45]}  Nxc5 {[%clk 0:02:30]} 15. Rhd1 {[%clk 0:01:40]}  Bd7 {[%clk 0:02:05]} 16. Ke2 {[%clk 0:01:34]}  Ba4 {[%clk 0:01:44]} 17. Rd4 {[%clk 0:01:08]}  Nb3 {[%clk 0:01:25]} 18. Bxb3 {[%clk 0:01:04]}  Bxb3 {[%clk 0:01:26]} 19. Rc1 {[%clk 0:01:03]}  Bd5 {[%clk 0:01:13]} 20. Bd6 {[%clk 0:00:54]}  Bc6 {[%clk 0:01:00]} 21. f3 {[%clk 0:00:41]}  Rd8 {[%clk 0:00:57]} 22. Rcd1 {[%clk 0:00:36]}  f6 {[%clk 0:00:53]} 23. Bc7 {[%clk 0:00:33]}  Rxd4 {[%clk 0:00:52]} 24. Rxd4 {[%clk 0:00:33]}  Kf7 {[%clk 0:00:51]} 25. Bd6 {[%clk 0:00:29]}  Rd8 {[%clk 0:00:50]} 26. Bc5 {[%clk 0:00:25]}  Rxd4 {[%clk 0:00:49]} 27. Bxd4 {[%clk 0:00:24]}  a6 {[%clk 0:00:49]} 28. Kd3 {[%clk 0:00:24]}  e5 {[%clk 0:00:49]} 29. Bc5 {[%clk 0:00:22]}  Ke6 {[%clk 0:00:48]} 30. e4 {[%clk 0:00:22]}  g6 {[%clk 0:00:48]} 31. Ke3 {[%clk 0:00:21]}  f5 {[%clk 0:00:48]} 32. exf5+ {[%clk 0:00:18]}  gxf5 {[%clk 0:00:48]} 33. g4 {[%clk 0:00:19]}  f4+ {[%clk 0:00:47]} 34. Kf2 {[%clk 0:00:18]}  Be8 {[%clk 0:00:43]} 35. Ba7 {[%clk 0:00:18]}  Bg6 {[%clk 0:00:43]} 36. Bb8 {[%clk 0:00:19]}  Be8 {[%clk 0:00:42]} 37. h4 {[%clk 0:00:19]}  h5 {[%clk 0:00:41]} 38. Ke2 {[%clk 0:00:17]}  Bg6 {[%clk 0:00:38]} 39. Kf2 {[%clk 0:00:15]}  Kd5 {[%clk 0:00:35]} 40. g5 {[%clk 0:00:09]}  Bf5 {[%clk 0:00:35]} 41. Bc7 {[%clk 0:00:08]}  Kd4 {[%clk 0:00:31]} 42. Bb8 {[%clk 0:00:08]}  Bg6 {[%clk 0:00:31]} 43. Bc7 {[%clk 0:00:08]}  Kd5 {[%clk 0:00:31]} 44. Bb8 {[%clk 0:00:08]}  Bf5 {[%clk 0:00:31]} 45. Bc7 {[%clk 0:00:09]}  Bg6 {[%clk 0:00:29]} 46. Bb8 {[%clk 0:00:09]} 1/2-1/2


[Site "https://www.chess.com"]

[Event "Titled Tuesday Blitz June 6 Late 2023"]
[White "Principe, Alexander"]
[Black "Skvortsov, Andrei"]
[WhiteFideId "3804542"]
[BlackFideId "24108600"]
[WhiteElo "2203"]
[BlackElo "2259"]
[Result "0-1"]
[Round "2"]
[TimeControl "180+2"]
[Date "2023.06.07"]
[WhiteClock "0:00:47"]
[BlackClock "0:01:33"]
[Board "59"]

1. e4 {[%clk 0:02:59]}  d5 {[%clk 0:02:57]} 2. exd5 {[%clk 0:02:59]}  Qxd5 {[%clk 0:02:58]} 3. Nc3 {[%clk 0:03:00]}  Qe5+ {[%clk 0:02:57]} 4. Be2 {[%clk 0:02:59]}  Bg4 {[%clk 0:02:57]} 5. d4 {[%clk 0:02:58]}  Bxe2 {[%clk 0:02:57]} 6. Ngxe2 {[%clk 0:02:58]}  Qa5 {[%clk 0:02:56]} 7. Bd2 {[%clk 0:02:57]}  Nf6 {[%clk 0:02:56]} 8. Ne4 {[%clk 0:02:56]}  Qb6 {[%clk 0:02:51]} 9. Nxf6+ {[%clk 0:02:56]}  gxf6 {[%clk 0:02:51]} 10. O-O {[%clk 0:02:49]}  Nc6 {[%clk 0:02:47]} 11. d5 {[%clk 0:02:33]}  Ne5 {[%clk 0:02:32]} 12. b3 {[%clk 0:02:23]}  Qd6 {[%clk 0:02:27]} 13. c4 {[%clk 0:02:20]}  Rg8 {[%clk 0:02:23]} 14. Bf4 {[%clk 0:02:17]}  Qd7 {[%clk 0:02:15]} 15. Ng3 {[%clk 0:02:06]}  Ng6 {[%clk 0:02:09]} 16. Be3 {[%clk 0:01:49]}  e6 {[%clk 0:02:06]} 17. Qh5 {[%clk 0:01:34]}  exd5 {[%clk 0:01:56]} 18. Rad1 {[%clk 0:01:34]}  O-O-O {[%clk 0:01:47]} 19. Rxd5 {[%clk 0:01:31]}  Qe8 {[%clk 0:01:47]} 20. Rxd8+ {[%clk 0:01:17]}  Qxd8 {[%clk 0:01:48]} 21. Rd1 {[%clk 0:01:16]}  Qe8 {[%clk 0:01:48]} 22. Qxh7 {[%clk 0:01:05]}  Rh8 {[%clk 0:01:45]} 23. Bc5 {[%clk 0:00:47]}  Rxh7 {[%clk 0:01:37]} 24. Nh5 {[%clk 0:00:47]}  Bxc5 {[%clk 0:01:34]} 25. Rd2 {[%clk 0:00:47]}  Qe1# {[%clk 0:01:33]} 0-1


[Site "https://www.chess.com"]

[Event "Titled Tuesday Blitz June 6 Late 2023"]
[White "Wagner, Dennis"]
[Black "Shapiro, Viktor"]
[WhiteFideId "24650684"]
[BlackFideId "4175700"]
[WhiteElo "2478"]
[BlackElo "2212"]
[Result "1-0"]
[Round "2"]
[TimeControl "180+2"]
[Date "2023.06.07"]
[WhiteClock "0:00:59"]
[BlackClock "0:01:53"]
[Board "61"]

1. d4 {[%clk 0:03:00]}  Nf6 {[%clk 0:02:55]} 2. Nf3 {[%clk 0:03:00]}  e6 {[%clk 0:02:55]} 3. c4 {[%clk 0:03:00]}  c5 {[%clk 0:02:54]} 4. e3 {[%clk 0:02:55]}  b6 {[%clk 0:02:49]} 5. Nc3 {[%clk 0:02:49]}  Bb7 {[%clk 0:02:49]} 6. d5 {[%clk 0:02:48]}  exd5 {[%clk 0:02:47]} 7. cxd5 {[%clk 0:02:49]}  d6 {[%clk 0:02:47]} 8. Be2 {[%clk 0:02:33]}  a6 {[%clk 0:02:47]} 9. a4 {[%clk 0:02:33]}  g6 {[%clk 0:02:45]} 10. O-O {[%clk 0:02:32]}  Bg7 {[%clk 0:02:45]} 11. e4 {[%clk 0:02:32]}  O-O {[%clk 0:02:45]} 12. Bf4 {[%clk 0:02:32]}  Nh5 {[%clk 0:02:45]} 13. Bg5 {[%clk 0:02:32]}  Bf6 {[%clk 0:02:45]} 14. Bh6 {[%clk 0:02:32]}  Re8 {[%clk 0:02:45]} 15. Nd2 {[%clk 0:02:24]}  Bg5 {[%clk 0:02:34]} 16. Bxg5 {[%clk 0:02:20]}  Qxg5 {[%clk 0:02:34]} 17. Bxh5 {[%clk 0:02:19]}  gxh5 {[%clk 0:02:35]} 18. Nc4 {[%clk 0:02:06]}  Qg6 {[%clk 0:02:27]} 19. Nxb6 {[%clk 0:02:03]}  Ra7 {[%clk 0:02:27]} 20. f4 {[%clk 0:02:02]}  f5 {[%clk 0:02:15]} 21. Qc2 {[%clk 0:01:20]}  fxe4 {[%clk 0:02:10]} 22. f5 {[%clk 0:01:20]}  Qg4 {[%clk 0:02:06]} 23. f6 {[%clk 0:01:19]}  Re5 {[%clk 0:02:02]} 24. f7+ {[%clk 0:01:15]}  Kf8 {[%clk 0:02:02]} 25. Rae1 {[%clk 0:01:00]}  Bc8 {[%clk 0:01:53]} 26. h3 {[%clk 0:00:59]} 1-0


[Site "https://www.chess.com"]

[Event "Titled Tuesday Blitz June 6 Late 2023"]
[White "Arnaudov, G. Petar"]
[Black "Rego, Pedro Filipe"]
[WhiteFideId "2907127"]
[BlackFideId "1904310"]
[WhiteElo "2430"]
[BlackElo "2193"]
[Result "1/2-1/2"]
[Round "2"]
[TimeControl "180+2"]
[Date "2023.06.07"]
[WhiteClock "0:00:10"]
[BlackClock "0:00:06"]
[Board "62"]

1. Nf3 {[%clk 0:03:00]}  d5 {[%clk 0:02:59]} 2. g3 {[%clk 0:02:59]}  Nf6 {[%clk 0:02:56]} 3. Bg2 {[%clk 0:02:59]}  e6 {[%clk 0:02:51]} 4. O-O {[%clk 0:02:58]}  Be7 {[%clk 0:02:51]} 5. c4 {[%clk 0:02:56]}  O-O {[%clk 0:02:48]} 6. d4 {[%clk 0:02:56]}  dxc4 {[%clk 0:02:41]} 7. Qc2 {[%clk 0:02:54]}  b5 {[%clk 0:02:40]} 8. a4 {[%clk 0:02:43]}  b4 {[%clk 0:02:40]} 9. Nfd2 {[%clk 0:02:41]}  c6 {[%clk 0:02:39]} 10. Nxc4 {[%clk 0:02:41]}  Qxd4 {[%clk 0:02:39]} 11. Rd1 {[%clk 0:02:39]}  Qc5 {[%clk 0:02:36]} 12. Be3 {[%clk 0:02:37]}  Qh5 {[%clk 0:02:35]} 13. Nbd2 {[%clk 0:02:37]}  Ng4 {[%clk 0:02:29]} 14. Nf3 {[%clk 0:02:37]}  Nxe3 {[%clk 0:02:27]} 15. Nxe3 {[%clk 0:02:37]}  a5 {[%clk 0:02:22]} 16. Nd4 {[%clk 0:02:29]}  Ba6 {[%clk 0:02:20]} 17. Bf3 {[%clk 0:02:18]}  Qg6 {[%clk 0:02:15]} 18. Nxc6 {[%clk 0:02:12]}  Nxc6 {[%clk 0:02:10]} 19. Qxc6 {[%clk 0:02:12]}  Bf6 {[%clk 0:02:04]} 20. Rd2 {[%clk 0:02:04]}  Rfc8 {[%clk 0:01:59]} 21. Qb6 {[%clk 0:01:58]}  Rcb8 {[%clk 0:01:56]} 22. Qc7 {[%clk 0:01:55]}  Rc8 {[%clk 0:01:56]} 23. Qf4 {[%clk 0:01:52]}  Rab8 {[%clk 0:01:51]} 24. h4 {[%clk 0:01:51]}  e5 {[%clk 0:01:46]} 25. Qg4 {[%clk 0:01:45]}  Qxg4 {[%clk 0:01:45]} 26. Nxg4 {[%clk 0:01:43]}  Rd8 {[%clk 0:01:39]} 27. Nxf6+ {[%clk 0:01:42]}  gxf6 {[%clk 0:01:38]} 28. Rad1 {[%clk 0:01:43]}  Rxd2 {[%clk 0:01:33]} 29. Rxd2 {[%clk 0:01:44]}  Rc8 {[%clk 0:01:34]} 30. Rd6 {[%clk 0:01:34]}  Bc4 {[%clk 0:01:31]} 31. Rxf6 {[%clk 0:01:33]}  Be6 {[%clk 0:01:24]} 32. Be4 {[%clk 0:01:26]}  Kg7 {[%clk 0:01:20]} 33. Rf3 {[%clk 0:01:26]}  b3 {[%clk 0:01:12]} 34. Bd3 {[%clk 0:01:12]}  Rc1+ {[%clk 0:01:02]} 35. Kh2 {[%clk 0:01:12]}  Bd5 {[%clk 0:00:55]} 36. e4 {[%clk 0:01:11]}  Bc6 {[%clk 0:00:53]} 37. Re3 {[%clk 0:01:07]}  Bxa4 {[%clk 0:00:52]} 38. Ba6 {[%clk 0:01:07]}  Rc2 {[%clk 0:00:52]} 39. Re2 {[%clk 0:01:04]}  Bc6 {[%clk 0:00:48]} 40. f3 {[%clk 0:00:59]}  a4 {[%clk 0:00:39]} 41. Bd3 {[%clk 0:00:58]}  Rxe2+ {[%clk 0:00:36]} 42. Bxe2 {[%clk 0:00:58]}  f5 {[%clk 0:00:32]} 43. Bd3 {[%clk 0:00:54]}  fxe4 {[%clk 0:00:22]} 44. fxe4 {[%clk 0:00:54]}  Bd7 {[%clk 0:00:22]} 45. Kg2 {[%clk 0:00:52]}  Bg4 {[%clk 0:00:22]} 46. Kf2 {[%clk 0:00:52]}  Bd1 {[%clk 0:00:20]} 47. Ke1 {[%clk 0:00:52]}  Bf3 {[%clk 0:00:14]} 48. Kd2 {[%clk 0:00:52]}  Kg6 {[%clk 0:00:14]} 49. Kc3 {[%clk 0:00:50]}  Kh5 {[%clk 0:00:14]} 50. Kb4 {[%clk 0:00:51]}  Kg4 {[%clk 0:00:14]} 51. Kxa4 {[%clk 0:00:51]}  Bd1 {[%clk 0:00:13]} 52. Kb4 {[%clk 0:00:48]}  Kxg3 {[%clk 0:00:13]} 53. Kc5 {[%clk 0:00:47]}  Kf4 {[%clk 0:00:07]} 54. Kd5 {[%clk 0:00:47]}  Bc2 {[%clk 0:00:07]} 55. Kc4 {[%clk 0:00:19]}  h5 {[%clk 0:00:01]} 56. Kc3 {[%clk 0:00:19]}  Bd1 {[%clk 0:00:02]} 57. Kd2 {[%clk 0:00:18]}  Bf3 {[%clk 0:00:02]} 58. Kc3 {[%clk 0:00:18]}  Bxe4 {[%clk 0:00:02]} 59. Bc4 {[%clk 0:00:11]}  Bc2 {[%clk 0:00:03]} 60. Bf7 {[%clk 0:00:12]}  Bd1 {[%clk 0:00:01]} 61. Kd2 {[%clk 0:00:12]}  Bg4 {[%clk 0:00:01]} 62. Bxb3 {[%clk 0:00:12]}  Kg3 {[%clk 0:00:01]} 63. Bf7 {[%clk 0:00:11]}  Kf4 {[%clk 0:00:01]} 64. b4 {[%clk 0:00:11]}  e4 {[%clk 0:00:01]} 65. b5 {[%clk 0:00:11]}  e3+ {[%clk 0:00:02]} 66. Ke1 {[%clk 0:00:11]}  Bf3 {[%clk 0:00:03]} 67. Be8 {[%clk 0:00:10]}  Kg3 {[%clk 0:00:03]} 68. Bc6 {[%clk 0:00:10]}  Bg4 {[%clk 0:00:02]} 69. b6 {[%clk 0:00:11]}  Bc8 {[%clk 0:00:03]} 70. b7 {[%clk 0:00:11]}  Bxb7 {[%clk 0:00:03]} 71. Bxb7 {[%clk 0:00:12]}  Kxh4 {[%clk 0:00:03]} 72. Bf3 {[%clk 0:00:12]}  Kg3 {[%clk 0:00:04]} 73. Bxh5 {[%clk 0:00:12]}  Kf4 {[%clk 0:00:05]} 74. Ke2 {[%clk 0:00:12]}  Ke4 {[%clk 0:00:05]} 75. Bg6+ {[%clk 0:00:12]}  Kd4 {[%clk 0:00:06]} 76. Bh7 {[%clk 0:00:12]}  Ke5 {[%clk 0:00:06]} 77. Kxe3 {[%clk 0:00:10]} 1/2-1/2


[Site "https://www.chess.com"]

[Event "Titled Tuesday Blitz June 6 Late 2023"]
[White "Kaplan, Avi Harrison"]
[Black "Tanenbaum, Zachary"]
[WhiteFideId "30934559"]
[BlackFideId "2060850"]
[WhiteElo "1983"]
[BlackElo "2207"]
[Result "0-1"]
[Round "2"]
[TimeControl "180+2"]
[Date "2023.06.07"]
[WhiteClock "0:00:26"]
[BlackClock "0:00:42"]
[Board "63"]

1. b3 {[%clk 0:02:57]}  e5 {[%clk 0:02:59]} 2. Bb2 {[%clk 0:02:57]}  Nc6 {[%clk 0:03:00]} 3. e3 {[%clk 0:02:56]}  a6 {[%clk 0:02:59]} 4. a3 {[%clk 0:02:41]}  d5 {[%clk 0:02:58]} 5. d3 {[%clk 0:02:32]}  Bd6 {[%clk 0:02:55]} 6. f4 {[%clk 0:02:32]}  Nf6 {[%clk 0:02:02]} 7. g3 {[%clk 0:02:26]}  O-O {[%clk 0:01:59]} 8. Bg2 {[%clk 0:02:25]}  Ng4 {[%clk 0:01:57]} 9. fxe5 {[%clk 0:01:40]}  Nxe3 {[%clk 0:01:52]} 10. Qe2 {[%clk 0:01:33]}  Nxg2+ {[%clk 0:01:50]} 11. Qxg2 {[%clk 0:01:34]}  Bxe5 {[%clk 0:01:43]} 12. Bxe5 {[%clk 0:01:31]}  Nxe5 {[%clk 0:01:43]} 13. Ne2 {[%clk 0:01:30]}  Qf6 {[%clk 0:01:37]} 14. Nbc3 {[%clk 0:01:25]}  Bg4 {[%clk 0:01:33]} 15. Rf1 {[%clk 0:01:19]}  Nf3+ {[%clk 0:00:51]} 16. Kd1 {[%clk 0:01:18]}  Rfe8 {[%clk 0:00:51]} 17. h3 {[%clk 0:01:15]}  Rxe2 {[%clk 0:00:47]} 18. hxg4 {[%clk 0:01:02]}  Rxg2 {[%clk 0:00:46]} 19. Kc1 {[%clk 0:00:35]}  Qxc3 {[%clk 0:00:46]} 20. Ra2 {[%clk 0:00:36]}  Nd4 {[%clk 0:00:44]} 21. Kb1 {[%clk 0:00:27]}  Rxc2 {[%clk 0:00:42]} 22. Rf4 {[%clk 0:00:26]}  Rc1# {[%clk 0:00:42]} 0-1


[Site "https://www.chess.com"]

[Event "Titled Tuesday Blitz June 6 Late 2023"]
[White "Rosen, Eric"]
[Black "QuiesPrecatio"]
[WhiteFideId "2032562"]
[WhiteElo "2331"]
[BlackElo "2439"]
[Result "0-1"]
[Round "2"]
[TimeControl "180+2"]
[Date "2023.06.07"]
[WhiteClock "0:00:02"]
[BlackClock "0:01:07"]
[Board "64"]

1. d4 {[%clk 0:03:00]}  Nf6 {[%clk 0:02:59]} 2. Bf4 {[%clk 0:03:00]}  g6 {[%clk 0:02:53]} 3. Nc3 {[%clk 0:03:00]}  d5 {[%clk 0:02:50]} 4. e3 {[%clk 0:03:00]}  Bg7 {[%clk 0:02:49]} 5. h4 {[%clk 0:03:01]}  c6 {[%clk 0:02:35]} 6. Nf3 {[%clk 0:03:00]}  Bg4 {[%clk 0:02:31]} 7. Qd2 {[%clk 0:02:59]}  Nbd7 {[%clk 0:02:29]} 8. Ne5 {[%clk 0:02:55]}  Nxe5 {[%clk 0:02:26]} 9. Bxe5 {[%clk 0:02:52]}  Ne4 {[%clk 0:02:03]} 10. Nxe4 {[%clk 0:02:52]}  Bxe5 {[%clk 0:02:04]} 11. dxe5 {[%clk 0:02:52]}  dxe4 {[%clk 0:02:04]} 12. Qb4 {[%clk 0:02:52]}  Qd5 {[%clk 0:02:04]} 13. Qc3 {[%clk 0:01:31]}  O-O-O {[%clk 0:01:45]} 14. Be2 {[%clk 0:00:54]}  Bxe2 {[%clk 0:01:45]} 15. Kxe2 {[%clk 0:00:55]}  Qb5+ {[%clk 0:01:46]} 16. Ke1 {[%clk 0:00:55]}  Rd5 {[%clk 0:01:46]} 17. e6 {[%clk 0:00:27]}  f6 {[%clk 0:01:46]} 18. a4 {[%clk 0:00:27]}  Qb6 {[%clk 0:01:26]} 19. Rd1 {[%clk 0:00:16]}  Rhd8 {[%clk 0:01:17]} 20. Rxd5 {[%clk 0:00:14]}  Rxd5 {[%clk 0:01:18]} 21. b3 {[%clk 0:00:10]}  Qc7 {[%clk 0:01:11]} 22. Ke2 {[%clk 0:00:09]}  Qd6 {[%clk 0:01:10]} 23. g3 {[%clk 0:00:09]}  Qxe6 {[%clk 0:01:09]} 24. Qe1 {[%clk 0:00:02]}  Qg4+ {[%clk 0:01:07]} 25. Kf1 {[%clk 0:00:02]}  Rd1 {[%clk 0:01:08]} 26. Kg2 {[%clk 0:00:02]}  Qf3+ {[%clk 0:01:07]} 27. Kh2 {[%clk 0:00:02]}  Rxe1 {[%clk 0:01:07]} 28. Rxe1 {[%clk 0:00:02]}  Qxf2+ {[%clk 0:01:08]} 29. Kh3 {[%clk 0:00:03]}  Qxe1 {[%clk 0:01:08]} 30. a5 {[%clk 0:00:02]}  h5 {[%clk 0:01:07]} 31. a6 {[%clk 0:00:02]}  Qh1# {[%clk 0:01:07]} 0-1


[Site "https://www.chess.com"]

[Event "Titled Tuesday Blitz June 6 Late 2023"]
[White "Ozer, Omer Faruk"]
[Black "Ansh M Shah"]
[WhiteFideId "6354564"]
[BlackFideId "25033379"]
[WhiteElo "2260"]
[BlackElo "2084"]
[Result "1-0"]
[Round "2"]
[TimeControl "180+2"]
[Date "2023.06.07"]
[WhiteClock "0:01:01"]
[BlackClock "0:00:01"]
[Board "65"]

1. d4 {[%clk 0:03:00]}  c6 {[%clk 0:03:00]} 2. c4 {[%clk 0:02:58]}  d5 {[%clk 0:03:01]} 3. Nc3 {[%clk 0:02:58]}  Nf6 {[%clk 0:03:02]} 4. Nf3 {[%clk 0:02:58]}  e6 {[%clk 0:03:01]} 5. e3 {[%clk 0:02:57]}  Nbd7 {[%clk 0:02:56]} 6. Qc2 {[%clk 0:02:56]}  Be7 {[%clk 0:02:56]} 7. g4 {[%clk 0:02:54]}  Nxg4 {[%clk 0:02:55]} 8. Rg1 {[%clk 0:02:53]}  Nh6 {[%clk 0:02:39]} 9. e4 {[%clk 0:02:43]}  dxe4 {[%clk 0:02:39]} 10. Bxh6 {[%clk 0:02:43]}  exf3 {[%clk 0:02:07]} 11. Bxg7 {[%clk 0:02:28]}  Rg8 {[%clk 0:02:07]} 12. O-O-O {[%clk 0:02:28]}  Bg5+ {[%clk 0:02:02]} 13. Kb1 {[%clk 0:02:27]}  Rxg7 {[%clk 0:02:02]} 14. Ne4 {[%clk 0:02:27]}  Bh6 {[%clk 0:01:20]} 15. Rxg7 {[%clk 0:02:16]}  Bxg7 {[%clk 0:01:21]} 16. d5 {[%clk 0:02:16]}  exd5 {[%clk 0:00:57]} 17. cxd5 {[%clk 0:02:17]}  Qb6 {[%clk 0:00:51]} 18. Bh3 {[%clk 0:01:39]}  Kf8 {[%clk 0:00:19]} 19. Nd6 {[%clk 0:01:37]}  Qc7 {[%clk 0:00:07]} 20. dxc6 {[%clk 0:01:25]}  bxc6 {[%clk 0:00:03]} 21. Nxc8 {[%clk 0:01:10]}  Rxc8 {[%clk 0:00:02]} 22. Rxd7 {[%clk 0:01:11]}  Qe5 {[%clk 0:00:01]} 23. Qb3 {[%clk 0:01:01]}  Re8 {[%clk 0:00:01]} 24. Qxf7# {[%clk 0:01:01]} 1-0


[Site "https://www.chess.com"]